lending/lending_fUSD_20250318
["ID","MTS","AMOUNT","RATE_DAILY","PERIOD"]
[356354180,1742331076044,600.0,8.5e-05,3]
[356354181,1742331077415,3381.7505,8.84e-05,2]
[356354182,1742331077438,2392.709,8.84e-05,2]
[356354183,1742331078134,1300.0,8.6e-05,3]
[356354184,1742331080936,2000.0,8.7e-05,3]
[356354185,1742331081425,3499.289761,8.894e-05,2]
[356354186,1742331082331,2700.0,8.8e-05,3]
[356354187,1742331084571,3400.0,8.9e-05,3]
[356354188,1742331086689,600.0,9e-05,3]
[356354189,1742331088798,600.0,9.8e-05,3]
[356354190,1742331090888,600.0,9.9e-05,3]
[356354191,1742331091992,153.23,0.0002199,120]
[356354192,1742331092838,150.5,0.0002199,120]
[356354193,1742331093046,600.0,0.0001,3]
[356354194,1742331093319,150.5,0.0002198,120]
[356354195,1742331093808,153.81,0.0002197,120]
[356354196,1742331157742,900.0,8.5e-05,3]
[356354197,1742331159007,1800.0,8.6e-05,3]
[356354198,1742331161112,2700.0,8.7e-05,3]
[356354199,1742331163238,3600.0,8.8e-05,3]
[356354200,1742331165323,4500.0,8.9e-05,3]
[356354201,1742331167425,900.0,9e-05,3]
[356354202,1742331169541,900.0,9.8e-05,3]
[356354203,1742331171661,900.0,9.9e-05,3]
[356354204,1742331173766,900.0,0.0001,3]
[356354205,1742331189595,386.4189479,8.768e-05,2]
[356354206,1742331213055,177.0,0.0002199,120]
[356354207,1742331213126,177.0,0.0002198,120]
[356354208,1742331213203,177.0,0.0002197,120]
[356354209,1742331213671,177.0,0.0002199,120]
[356354210,1742331214135,177.0,0.0002198,120]
[356354211,1742331214183,243.47,8.715e-05,2]
[356354212,1742331214600,177.0,0.0002197,120]
[356354213,1742331215529,177.0,0.0002199,120]
[356354214,1742331215719,177.0,0.0002198,120]
[356354215,1742331216194,177.0,0.0002199,120]
[356354216,1742331216665,177.0,0.0002198,120]
[356354218,1742331231892,164.87,8.715e-05,2]
[356354219,1742331243874,3234.0,9e-05,5]
[356354220,1742331244230,3234.0,9e-05,5]
[356354221,1742331244633,3234.0,9e-05,5]
[356354222,1742331245024,3234.0,9e-05,5]
[356354223,1742331246984,3236.0,9e-05,5]
[356354224,1742331247057,3234.0,9e-05,5]
[356354225,1742331272091,1370.99,8.678e-05,2]
[356354226,1742331280549,289.8142109,8.768e-05,2]
[356354227,1742331311982,1652.4380802,8.683e-05,2]
[356354228,1742331312010,347.5619198,8.683e-05,2]
[356354253,1742331369553,217.3606582,8.768e-05,2]
[356354257,1742331460039,163.0204936,8.768e-05,2]
[356354259,1742331471070,150.0,9.562e-05,7]
[356354260,1742331480712,942.4,8.361e-05,2]
[356354261,1742331550557,163.0204937,8.768e-05,2]
[356354263,1742331555433,8166.6364347,8.377e-05,2]
[356354264,1742331555455,10000.0,8.377e-05,2]
[356354265,1742331555477,5733.3635653,8.377e-05,2]
[356354266,1742331591750,914.91224137,8.74e-05,2]
[356354267,1742331594549,163.0204937,8.768e-05,2]
[356354268,1742331620434,250.0,8.845e-05,2]
[356354269,1742331639630,163.0204937,8.768e-05,2]
[356354270,1742331666481,1500.0,8.389e-05,2]
[356354284,1742331818122,1000.0,8.449e-05,2]
[356354285,1742331840530,275.68320593,8.219e-05,2]
[356354286,1742331840554,1406.11679407,8.219e-05,2]
[356354287,1742331878594,250.0,8.439e-05,2]
[356354291,1742332057228,204.65,8.408e-05,2]
[356354292,1742332076005,157.031906,0.00022,120]
[356354294,1742332122384,161.35,6.747e-05,2]
[356354296,1742332141754,3125.67,8.767e-05,2]
[356354297,1742332193139,653.5,8.74e-05,2]
[356354298,1742332196849,350.9,8.41e-05,2]
[356354299,1742332197284,350.9,8.432e-05,2]
[356354300,1742332197515,350.9,8.454e-05,2]
[356354301,1742332197837,350.9,8.476e-05,2]
[356354302,1742332198108,350.9,8.498e-05,2]
[356354303,1742332198326,350.9,8.52e-05,2]
[356354304,1742332198580,350.9,8.542e-05,2]
[356354305,1742332199038,350.9,8.564e-05,2]
[356354306,1742332199284,350.9,8.587e-05,2]
[356354307,1742332199517,350.9,8.609e-05,2]
[356354308,1742332199778,350.9,8.631e-05,2]
[356354309,1742332200307,338.81320593,8.653e-05,2]
[356354310,1742332200342,12.08679407,8.653e-05,2]
[356354311,1742332200524,350.9,8.675e-05,2]
[356354312,1742332200751,350.9,8.697e-05,2]
[356354313,1742332200972,350.9,8.719e-05,2]
[356354314,1742332201211,350.9,8.742e-05,2]
[356354315,1742332202321,350.9,8.764e-05,2]
[356354316,1742332202362,350.9,8.786e-05,2]
[356354317,1742332202413,350.9,8.808e-05,2]
[356354318,1742332202517,350.9,8.83e-05,2]
[356354319,1742332229142,725.25,8.423e-05,2]
[356354323,1742332231959,-150.0,8.939e-05,2]
[356354324,1742332231969,-300.0,8.939e-05,2]
[356354325,1742332231980,-150.0,8.939e-05,2]
[356354326,1742332231990,-250.0,8.939e-05,2]
[356354327,1742332231999,-732.22003,8.94e-05,2]
[356354328,1742332232028,-252.252,8.94e-05,2]
[356354329,1742332232075,-251.05141316,8.94e-05,2]
[356354330,1742332232088,-12255.20306442,8.94e-05,2]
[356354331,1742332232242,-1216.66159242,8.94e-05,2]
[356354332,1742332232253,-648.79658079,8.94e-05,2]
[356354334,1742332237811,-289.80501746,8.94e-05,2]
[356354335,1742332237867,-338.91974493,8.94e-05,2]
[356354336,1742332237878,-661.21728265,8.94e-05,2]
[356354337,1742332237889,-735.0921918,8.94e-05,2]
[356354338,1742332237923,-449.18515269,8.94e-05,2]
[356354339,1742332237980,-90.75942968,8.94e-05,2]
[356354340,1742332237990,-342.17375653,8.94e-05,2]
[356354341,1742332238002,-3476.6,8.94e-05,2]
[356354342,1742332238037,-378.66724347,8.94e-05,2]
[356354343,1742332238047,-163.1,8.948e-05,2]
[356354344,1742332238058,-285.0,9e-05,2]
[356354345,1742332238068,-250.0,9e-05,2]
[356354346,1742332238078,-3000.0,9e-05,2]
[356354347,1742332238088,-367.15136268,9.013e-05,2]
[356354348,1742332238097,-196.51784312,9.013e-05,2]
[356354349,1742332238108,-1000.0,9.013e-05,2]
[356354350,1742332238117,-187.247,9.013e-05,2]
[356354351,1742332238127,-2486.393,9.013e-05,2]
[356354352,1742332238136,-8572.67555072,9.014e-05,2]
[356354353,1742332238148,-16098.20203296,9.014e-05,2]
[356354356,1742332238171,-1520.0,9.014e-05,2]
[356354358,1742332238183,-5461.4,9.014e-05,2]
[356354493,1742332240681,-457.84129717,9.014e-05,2]
[356354494,1742332240693,-7376.88111915,9.014e-05,2]
[356354496,1742332240702,-7517.85,9.014e-05,2]
[356354497,1742332240712,-1177.19,9.014e-05,2]
[356354498,1742332240721,-1000.0,9.03e-05,2]
[356354499,1742332240731,-1000.0,9.03e-05,2]
[356354500,1742332240740,-596.25532401,9.03e-05,2]
[356354524,1742332243033,-403.74467599,9.03e-05,2]
[356354527,1742332243043,-1000.0,9.03e-05,2]
[356354529,1742332243052,-294.29,9.03e-05,2]
[356354531,1742332243063,-330.7,9.03e-05,2]
[356354533,1742332243072,-8106.43,9.03e-05,2]
[356354535,1742332243083,-999.99,9.03e-05,2]
[356354537,1742332243092,-150.99,9.03e-05,2]
[356354539,1742332243102,-9999.99,9.03e-05,2]
[356354541,1742332243112,-1391.95,9.03e-05,2]
[356354543,1742332243122,-5329.2933488,9.034e-05,2]
[356354545,1742332243132,-5878567.64414426,9.04e-05,2]
[356354547,1742332243142,-252.38,9.04e-05,2]
[356354549,1742332243152,-442.45,9.04e-05,2]
[356354551,1742332243161,-779.87,9.04e-05,2]
[356354553,1742332243171,-442.45,9.04e-05,2]
[356354555,1742332243181,-779.87,9.04e-05,2]
[356354557,1742332243191,-442.45,9.04e-05,2]
[356354559,1742332243201,-779.87,9.04e-05,2]
[356354561,1742332243211,-442.45,9.04e-05,2]
[356354563,1742332243220,-779.87,9.04e-05,2]
[356354565,1742332243230,-442.45,9.04e-05,2]
[356354567,1742332243240,-779.87,9.04e-05,2]
[356354569,1742332243250,-779.87,9.04e-05,2]
[356354570,1742332243260,-442.45,9.04e-05,2]
[356354571,1742332243270,-779.87,9.04e-05,2]
[356354572,1742332243279,-442.45,9.04e-05,2]
[356354573,1742332243289,-7987.85798626,9.04e-05,2]
[356354574,1742332243298,-613.99909357,9.04e-05,2]
[356354575,1742332243307,-779.87,9.04e-05,2]
[356354576,1742332243317,-442.45,9.04e-05,2]
[356354577,1742332243326,-262.32509239,9.04e-05,2]
[356354578,1742332243337,-401.63554138,9.04e-05,2]
[356354579,1742332243347,-779.87,9.04e-05,2]
[356354580,1742332243356,-442.45,9.04e-05,2]
[356354581,1742332243366,-482.88,9.04e-05,2]
[356354582,1742332243375,-3559.78,9.04e-05,2]
[356354583,1742332243385,-3616.23,9.04e-05,2]
[356354584,1742332243394,-456.72,9.06e-05,2]
[356354585,1742332243404,-593.0,9.096e-05,2]
[356354586,1742332243412,-164.47,9.119e-05,2]
[356354587,1742332243422,-441.71,9.151e-05,2]
[356354588,1742332243431,-274.79,9.151e-05,2]
[356354589,1742332243440,-225.58,9.151e-05,2]
[356354590,1742332243450,-301.08,9.151e-05,2]
[356354591,1742332243460,-345.61,9.151e-05,2]
[356354592,1742332243470,-304.84,9.151e-05,2]
[356354593,1742332243479,-150.0,9.151e-05,2]
[356354594,1742332243489,-150.0,9.151e-05,2]
[356354595,1742332243501,-150.0,9.151e-05,2]
[356354596,1742332243511,-441.71,9.151e-05,2]
[356354598,1742332243521,-345.61,9.151e-05,2]
[356354599,1742332243530,-345.61,9.151e-05,2]
[356354600,1742332243539,-150.0,9.151e-05,2]
[356354601,1742332243550,-150.0,9.151e-05,2]
[356354602,1742332243560,-150.0,9.151e-05,2]
[356354603,1742332243570,-441.71,9.151e-05,2]
[356354605,1742332243581,-150.0,9.151e-05,2]
[356354607,1742332243591,-441.71,9.151e-05,2]
[356354609,1742332243600,-345.61,9.151e-05,2]
[356354611,1742332243610,-150.0,9.151e-05,2]
[356354613,1742332243619,-150.0,9.151e-05,2]
[356354615,1742332243629,-150.0,9.151e-05,2]
[356354616,1742332243638,-150.0,9.151e-05,2]
[356354617,1742332243648,-441.71,9.151e-05,2]
[356354618,1742332243657,-345.61,9.151e-05,2]
[356354619,1742332243668,-441.71,9.151e-05,2]
[356354620,1742332243679,-150.0,9.151e-05,2]
[356354621,1742332243689,-303.46,9.151e-05,2]
[356354622,1742332243699,-742.26,9.151e-05,2]
[356354623,1742332243709,-150.0,9.151e-05,2]
[356354624,1742332243719,-441.71,9.151e-05,2]
[356354625,1742332243728,-150.0,9.151e-05,2]
[356354626,1742332243738,-150.0,9.151e-05,2]
[356354627,1742332243748,-401.64,9.151e-05,2]
[356354628,1742332243759,-150.0,9.151e-05,2]
[356354629,1742332243769,-150.0,9.151e-05,2]
[356354630,1742332243779,-171.53,9.171e-05,2]
[356354631,1742332243790,-184.69,9.263e-05,2]
[356354632,1742332243801,-12000.0,9.432e-05,2]
[356354633,1742332243812,-16893.14,9.432e-05,2]
[356354634,1742332243822,-1000.0,9.505e-05,2]
[356354635,1742332243832,-7987.85798624,9.52e-05,2]
[356354636,1742332243842,-262.32509238,9.52e-05,2]
[356354637,1742332243852,-401.63554137,9.52e-05,2]
[356354638,1742332243861,-150.0,9.644e-05,2]
[356354639,1742332243871,-288.48,9.672e-05,2]
[356354640,1742332243881,-3936.0,9.672e-05,2]
[356354641,1742332243892,-1013.0,9.672e-05,2]
[356354642,1742332243902,-151.0,9.672e-05,2]
[356354643,1742332243912,-150.0,9.677e-05,2]
[356354644,1742332243922,-150.0,9.681e-05,2]
[356354645,1742332243931,-1114.0,9.682e-05,2]
[356354646,1742332243941,-163.1,9.686e-05,2]
[356354647,1742332243951,-326.74,9.688e-05,2]
[356354648,1742332243960,-150.0,9.693e-05,2]
[356354649,1742332243970,-150.0,9.7e-05,2]
[356354650,1742332243981,-1306.96,9.7e-05,2]
[356354651,1742332243990,-150.0,9.716e-05,2]
[356354652,1742332244000,-150.0,9.722e-05,2]
[356354653,1742332244010,-1000.0,9.723e-05,2]
[356354654,1742332244020,-150.0,9.726e-05,2]
[356354655,1742332244030,-150.0,9.734e-05,2]
[356354656,1742332244040,-1000.0,9.736e-05,2]
[356354657,1742332244050,-1000.0,9.738e-05,2]
[356354658,1742332244060,-150.0,9.738e-05,2]
[356354659,1742332244070,-150.0,9.738e-05,2]
[356354660,1742332244080,-150.0,9.74e-05,2]
[356354661,1742332244090,-157.61528155,9.746e-05,2]
[356354662,1742332244101,-150.0,9.748e-05,2]
[356354663,1742332244111,-1000.0,9.754e-05,2]
[356354664,1742332244120,-150.0,9.754e-05,2]
[356354665,1742332244130,-150.0,9.758e-05,2]
[356354666,1742332244139,-1000.0,9.759e-05,2]
[356354667,1742332244149,-1370.99,9.762e-05,2]
[356354668,1742332244159,-150.0,9.768e-05,2]
[356354669,1742332244169,-150.0,9.773e-05,2]
[356354670,1742332244178,-150.0,9.776e-05,2]
[356354671,1742332244188,-150.0,9.78e-05,2]
[356354672,1742332244198,-150.0,9.786e-05,2]
[356354673,1742332244208,-150.0,9.787e-05,2]
[356354674,1742332244218,-2034.0,9.788e-05,2]
[356354675,1742332244227,-351.823,9.788e-05,2]
[356354676,1742332244238,-150.0,9.79e-05,2]
[356354677,1742332244248,-150.0,9.794e-05,2]
[356354678,1742332244258,-150.0,9.795e-05,2]
[356354679,1742332244268,-1000.0,9.801e-05,2]
[356354680,1742332244278,-150.0,9.81e-05,2]
[356354681,1742332244287,-150.0,9.815e-05,2]
[356354682,1742332244297,-1000.0,9.816e-05,2]
[356354683,1742332244307,-150.0,9.822e-05,2]
[356354684,1742332244316,-150.0,9.826e-05,2]
[356354685,1742332244325,-250.0,9.833e-05,2]
[356354686,1742332244335,-150.0,9.833e-05,2]
[356354687,1742332244345,-255.0,9.833e-05,2]
[356354688,1742332244354,-420.0,9.833e-05,2]
[356354689,1742332244363,-150.0,9.833e-05,2]
[356354690,1742332244373,-250.0,9.833e-05,2]
[356354691,1742332244383,-150.0,9.842e-05,2]
[356354692,1742332244393,-150.0,9.842e-05,2]
[356354693,1742332244403,-150.0,9.849e-05,2]
[356354694,1742332244413,-1000.0,9.854e-05,2]
[356354695,1742332244422,-5635.1070385,9.856e-05,2]
[356354696,1742332244432,-150.0,9.861e-05,2]
[356354697,1742332244442,-1000.0,9.863e-05,2]
[356354698,1742332244453,-1000.0,9.863e-05,2]
[356354699,1742332244463,-1000.0,9.863e-05,2]
[356354700,1742332244472,-1000.0,9.863e-05,2]
[356354701,1742332244482,-1000.0,9.863e-05,2]
[356354702,1742332244492,-1000.0,9.863e-05,2]
[356354703,1742332244506,-1000.0,9.863e-05,2]
[356354704,1742332244515,-1000.0,9.863e-05,2]
[356354705,1742332244525,-1000.0,9.863e-05,2]
[356354706,1742332244534,-1000.0,9.863e-05,2]
[356354707,1742332244544,-1000.0,9.863e-05,2]
[356354708,1742332244553,-1000.0,9.863e-05,2]
[356354709,1742332244563,-1000.0,9.863e-05,2]
[356354710,1742332244573,-1000.0,9.863e-05,2]
[356354711,1742332244583,-1000.0,9.863e-05,2]
[356354712,1742332244593,-1000.0,9.863e-05,2]
[356354713,1742332244603,-1000.0,9.863e-05,2]
[356354714,1742332244612,-1000.0,9.863e-05,2]
[356354715,1742332244622,-1000.0,9.863e-05,2]
[356354716,1742332244631,-1000.0,9.863e-05,2]
[356354717,1742332244640,-631.0,9.863e-05,2]
[356354718,1742332244650,-1000.0,9.863e-05,2]
[356354719,1742332244660,-1000.0,9.863e-05,2]
[356354720,1742332244669,-1000.0,9.863e-05,2]
[356354721,1742332244679,-1000.0,9.863e-05,2]
[356354722,1742332244688,-1000.0,9.863e-05,2]
[356354723,1742332244700,-1000.0,9.863e-05,2]
[356354724,1742332244710,-1000.0,9.863e-05,2]
[356354725,1742332244720,-1000.0,9.863e-05,2]
[356354726,1742332244730,-1000.0,9.863e-05,2]
[356354727,1742332244739,-1000.0,9.863e-05,2]
[356354728,1742332244749,-1000.0,9.863e-05,2]
[356354729,1742332244759,-1000.0,9.863e-05,2]
[356354730,1742332244769,-1000.0,9.863e-05,2]
[356354731,1742332244778,-1000.0,9.863e-05,2]
[356354732,1742332244788,-1000.0,9.863e-05,2]
[356354733,1742332244798,-1000.0,9.863e-05,2]
[356354734,1742332244807,-1000.0,9.863e-05,2]
[356354735,1742332244818,-1000.0,9.863e-05,2]
[356354736,1742332244828,-1000.0,9.863e-05,2]
[356354737,1742332244837,-1000.0,9.863e-05,2]
[356354738,1742332244847,-1000.0,9.863e-05,2]
[356354739,1742332244856,-1000.0,9.863e-05,2]
[356354740,1742332244865,-150.0,9.875e-05,2]
[356354741,1742332244875,-150.0,9.878e-05,2]
[356354742,1742332244885,-150.0,9.879e-05,2]
[356354743,1742332244894,-150.0,9.881e-05,2]
[356354744,1742332244904,-150.0,9.89e-05,2]
[356354745,1742332244915,-150.0,9.891e-05,2]
[356354746,1742332244924,-1000.0,9.891e-05,2]
[356354747,1742332244934,-150.0,9.893e-05,2]
[356354748,1742332244943,-150.0,9.893e-05,2]
[356354749,1742332244953,-150.0,9.896e-05,2]
[356354750,1742332244963,-1000.0,9.897e-05,2]
[356354751,1742332244972,-144782.98883463,9.9e-05,2]
[356354752,1742332244982,-1420.0,9.9e-05,2]
[356354753,1742332244992,-150.0,9.903e-05,2]
[356354754,1742332245002,-150.0,9.908e-05,2]
[356354755,1742332245012,-7001.76027741,9.91e-05,2]
[356354756,1742332245021,-31216.69583602,9.91e-05,2]
[356354757,1742332245031,-1000.0,9.913e-05,2]
[356354758,1742332245041,-150.0,9.913e-05,2]
[356354759,1742332245051,-171.53,9.928e-05,2]
[356354760,1742332245060,-1000.0,9.941e-05,2]
[356354761,1742332245070,-1000.0,9.949e-05,2]
[356354762,1742332245079,-150.0,9.957e-05,2]
[356354763,1742332245090,-150.0,9.959e-05,2]
[356354764,1742332245099,-150.0,9.963e-05,2]
[356354765,1742332245109,-150.0,9.964e-05,2]
[356354766,1742332245118,-779.87,9.973e-05,2]
[356354767,1742332245128,-779.87,9.973e-05,2]
[356354768,1742332245138,-779.87,9.973e-05,2]
[356354769,1742332245147,-779.87,9.973e-05,2]
[356354770,1742332245157,-619.81,9.973e-05,2]
[356354771,1742332245167,-442.45,9.973e-05,2]
[356354772,1742332245177,-442.45,9.973e-05,2]
[356354773,1742332245187,-442.45,9.973e-05,2]
[356354774,1742332245196,-442.45,9.973e-05,2]
[356354775,1742332245207,-442.45,9.973e-05,2]
[356354776,1742332245217,-442.45,9.973e-05,2]
[356354777,1742332245227,-245.86,9.973e-05,2]
[356354778,1742332245237,-35030.47296244,9.98e-05,2]
[356354779,1742332245247,-150.0,9.98e-05,2]
[356354780,1742332245257,-253.78651213,9.982e-05,2]
[356354781,1742332245266,-150.0,9.988e-05,2]
[356354782,1742332245275,-1000.0,9.988e-05,2]
[356354783,1742332245285,-684101.50573539,9.988e-05,2]
[356354784,1742332245295,-151.0,9.993e-05,2]
[356354785,1742332245305,-151.0,9.993e-05,2]
[356354786,1742332245314,-151.0,9.993e-05,2]
[356354787,1742332245324,-151.0,9.993e-05,2]
[356354788,1742332245334,-151.0,9.993e-05,2]
[356354789,1742332245343,-151.0,9.993e-05,2]
[356354790,1742332245353,-151.0,9.993e-05,2]
[356354791,1742332245362,-151.0,9.993e-05,2]
[356354792,1742332245371,-151.0,9.993e-05,2]
[356354793,1742332245381,-278.48205791,9.993e-05,2]
[356354794,1742332245391,-6821.7129347,9.993e-05,2]
[356354795,1742332245400,-8314.1325206,9.993e-05,2]
[356354796,1742332245409,-9806.5521065,9.993e-05,2]
[356354797,1742332245419,-11298.9716924,9.993e-05,2]
[356354798,1742332245428,-12791.3912783,9.993e-05,2]
[356354799,1742332245438,-8833995.30506398,0.0001,2]
[356354800,1742332245447,-1000.0,0.0001,2]
[356354801,1742332245457,-174.25198232,0.0001,2]
[356354802,1742332245466,-4190672.13435419,0.0001,2]
[356354803,1742332245475,-150.0,0.0001,2]
[356354804,1742332245485,-1840.44952694,0.0001,2]
[356354805,1742332245495,-150.0,0.0001,2]
[356354806,1742332245509,-920.42993692,0.0001,2]
[356354807,1742332245520,-2472361.8456142,0.0001,2]
[356354808,1742332245529,-579915.48896094,0.0001,2]
[356354809,1742332245539,-151.0,0.0001,2]
[356354810,1742332245551,-151.0,0.0001,2]
[356354811,1742332245560,-151.0,0.0001,2]
[356354812,1742332245570,-151.276595,0.0001,2]
[356354813,1742332245580,-336.34,0.0001,2]
[356354814,1742332245590,-151.0,0.0001,2]
[356354815,1742332245599,-151.0,0.0001,2]
[356354816,1742332245609,-151.0,0.0001,2]
[356354817,1742332245620,-151.0,0.0001,2]
[356354818,1742332245629,-151.0,0.0001,2]
[356354819,1742332245639,-151.0,0.0001,2]
[356354820,1742332245648,-1000.0,0.0001,2]
[356354821,1742332245658,-1000.0,0.0001,2]
[356354822,1742332245668,-151.0,0.0001,2]
[356354823,1742332245677,-151.0,0.0001,2]
[356354824,1742332245686,-151.0,0.0001,2]
[356354825,1742332245696,-151.0,0.0001,2]
[356354826,1742332245706,-151.0,0.0001,2]
[356354827,1742332245716,-151.0,0.0001,2]
[356354828,1742332245726,-151.0,0.0001,2]
[356354829,1742332245735,-151.0,0.0001,2]
[356354830,1742332245745,-205.414887,0.0001,2]
[356354831,1742332245755,-151.0,0.0001,2]
[356354832,1742332245764,-151.0,0.0001,2]
[356354833,1742332245774,-151.0,0.0001,2]
[356354834,1742332245783,-151.0,0.0001,2]
[356354835,1742332245793,-151.0,0.0001,2]
[356354836,1742332245803,-151.0,0.0001,2]
[356354837,1742332245814,-240.872782,0.0001,2]
[356354838,1742332245824,-151.0,0.0001,2]
[356354839,1742332245834,-153.724699,0.0001,2]
[356354840,1742332245843,-230.300282,0.0001,2]
[356354841,1742332245852,-151.0,0.0001,2]
[356354842,1742332245862,-151.0,0.0001,2]
[356354843,1742332245871,-151.0,0.0001,2]
[356354844,1742332245881,-151.0,0.0001,2]
[356354845,1742332245890,-151.0,0.0001,2]
[356354846,1742332245900,-151.0,0.0001,2]
[356354847,1742332245909,-151.0,0.0001,2]
[356354848,1742332245919,-151.0,0.0001,2]
[356354849,1742332245928,-151.0,0.0001,2]
[356354850,1742332245938,-150.0,0.0001,2]
[356354851,1742332245948,-4967.23962533,0.0001,2]
[356354852,1742332245958,-151.0,0.0001,2]
[356354853,1742332245968,-151.0,0.0001,2]
[356354854,1742332245977,-151.0,0.0001,2]
[356354855,1742332245987,-151.0,0.0001,2]
[356354856,1742332245997,-151.0,0.0001,2]
[356354857,1742332246006,-151.0,0.0001,2]
[356354858,1742332246016,-151.0,0.0001,2]
[356354859,1742332246026,-151.0,0.0001,2]
[356354860,1742332246035,-151.0,0.0001,2]
[356354862,1742332246045,-151.0,0.0001,2]
[356354863,1742332246055,-151.0,0.0001,2]
[356354864,1742332246065,-151.0,0.0001,2]
[356354865,1742332246075,-151.0,0.0001,2]
[356354866,1742332246084,-151.0,0.0001,2]
[356354867,1742332246094,-297.62731,0.0001,2]
[356354868,1742332246103,-151.0,0.0001,2]
[356354869,1742332246113,-151.0,0.0001,2]
[356354870,1742332246122,-207.250373,0.0001,2]
[356354871,1742332246132,-151.0,0.0001,2]
[356354872,1742332246142,-151.0,0.0001,2]
[356354873,1742332246151,-223.07803718,0.0001,2]
[356354874,1742332246160,-151.0,0.0001,2]
[356354875,1742332246171,-151.0,0.0001,2]
[356354876,1742332246180,-151.0,0.0001,2]
[356354877,1742332246190,-151.0,0.0001,2]
[356354878,1742332246201,-151.0,0.0001,2]
[356354879,1742332246211,-151.0,0.0001,2]
[356354880,1742332246220,-151.0,0.0001,2]
[356354881,1742332246231,-151.0,0.0001,2]
[356354882,1742332246241,-151.0,0.0001,2]
[356354883,1742332246250,-151.0,0.0001,2]
[356354884,1742332246260,-151.0,0.0001,2]
[356354885,1742332246269,-151.0,0.0001,2]
[356354886,1742332246279,-151.0,0.0001,2]
[356354887,1742332246288,-151.0,0.0001,2]
[356354888,1742332246297,-151.0,0.0001,2]
[356354889,1742332246306,-151.0,0.0001,2]
[356354890,1742332246316,-151.0,0.0001,2]
[356354891,1742332246325,-151.0,0.0001,2]
[356354892,1742332246334,-151.0,0.0001,2]
[356354893,1742332246344,-151.0,0.0001,2]
[356354894,1742332246354,-151.0,0.0001,2]
[356354895,1742332246364,-151.0,0.0001,2]
[356354896,1742332246373,-151.0,0.0001,2]
[356354897,1742332246383,-151.0,0.0001,2]
[356354903,1742332246647,-151.0,0.0001,2]
[356354904,1742332246657,-151.0,0.0001,2]
[356354905,1742332246666,-151.0,0.0001,2]
[356354906,1742332246676,-151.0,0.0001,2]
[356354907,1742332246686,-151.0,0.0001,2]
[356354908,1742332246696,-151.0,0.0001,2]
[356354909,1742332246706,-151.0,0.0001,2]
[356354910,1742332246716,-151.0,0.0001,2]
[356354911,1742332246726,-151.0,0.0001,2]
[356354912,1742332246735,-151.0,0.0001,2]
[356354913,1742332246745,-151.0,0.0001,2]
[356354914,1742332246755,-151.0,0.0001,2]
[356354915,1742332246764,-151.0,0.0001,2]
[356354916,1742332246774,-151.0,0.0001,2]
[356354917,1742332246783,-151.0,0.0001,2]
[356354918,1742332246792,-151.0,0.0001,2]
[356354919,1742332246802,-151.0,0.0001,2]
[356354920,1742332246812,-151.0,0.0001,2]
[356354921,1742332246823,-151.0,0.0001,2]
[356354922,1742332246832,-151.0,0.0001,2]
[356354923,1742332246841,-151.0,0.0001,2]
[356354924,1742332246851,-151.0,0.0001,2]
[356354925,1742332246860,-151.0,0.0001,2]
[356354926,1742332246869,-151.0,0.0001,2]
[356354927,1742332246879,-151.0,0.0001,2]
[356354928,1742332246888,-151.0,0.0001,2]